fUSD/lending_fUSD_20250820
["ID","MTS","AMOUNT","RATE_DAILY","PERIOD"]
[380344489,1755699429244,-2847.51,0.00030136,118]
[380344490,1755699429293,-866.3,0.00030136,120]
[380344491,1755699429342,-400.0,0.00030136,120]
[380344492,1755699429393,-400.0,0.00030136,120]
[380344493,1755699429444,-400.0,0.00030136,120]
[380344494,1755699429495,-400.0,0.00030136,120]
[380344495,1755699429543,-590.46,0.00030136,120]
[380344496,1755699429595,-400.0,0.00030136,120]
[380344497,1755699429644,-400.0,0.00030136,120]
[380344498,1755699429691,-945.34,0.00030136,120]
[380344499,1755699429737,-684.86,0.00030136,60]
[380344500,1755699429790,-1531.19,0.00030136,120]
[380344501,1755699429839,-1039.53,0.00030136,120]
[380344502,1755699429891,-2193.24,0.00030136,120]
[380344503,1755699429942,-400.0,0.00030136,120]
[380344504,1755699429994,-585.5,0.00030136,120]
[380344505,1755699430047,-400.0,0.00030136,120]
[380344506,1755699430093,-400.0,0.00030136,120]
[380344507,1755699430142,-1548.94,0.00030136,120]
[380344508,1755699430194,-400.0,0.00030136,120]
[380344509,1755699430244,-400.0,0.00030136,120]
[380344510,1755699430294,-1891.81,0.00030136,120]
[380344511,1755699430344,-1364.25,0.00030136,120]
[380344512,1755699430394,-579.11,0.00030136,120]
[380344513,1755699430443,-449.4,0.00030136,120]
[380344514,1755699430495,-400.0,0.00030136,120]
[380344515,1755699430543,-400.0,0.00030136,120]
[380344516,1755699430596,-400.0,0.00030136,120]
[380344517,1755699430646,-2153.12,0.00030136,120]
[380344518,1755699430693,-1698.03,0.00030136,120]
[380344519,1755699430742,-400.0,0.00030136,120]
[380344520,1755699430790,-711.86,0.00030136,120]
[380344521,1755699430844,-400.0,0.00030136,120]
[380344522,1755699430894,-521.43,0.00030136,120]
[380344523,1755699430942,-681.15,0.00030136,120]
[380344524,1755699430993,-486.77,0.00030136,120]
[380344525,1755699431049,-871.73,0.00030136,120]
[380344526,1755699431112,-400.0,0.00030136,120]
[380344527,1755699431171,-1062.72,0.00030136,120]
[380344528,1755699431224,-400.0,0.00030136,120]
[380344529,1755699431278,-913.3,0.00030136,120]
[380344530,1755699431338,-573.72,0.00030136,120]
[380344531,1755699431390,-2098.8,0.00030136,120]
[380344532,1755699431443,-572.56,0.00030136,120]
[380344533,1755699431497,-572.56,0.00030136,120]
[380344534,1755699431547,-572.56,0.00030136,120]
[380344535,1755699431597,-572.56,0.00030136,120]
[380344536,1755699431648,-572.56,0.00030136,120]
[380344537,1755699431701,-1619.77,0.00030136,120]
[380344538,1755699431750,-572.56,0.00030136,120]
[380344539,1755699431799,-400.0,0.00030136,120]
[380344540,1755699431846,-572.56,0.00030136,120]
[380344541,1755699431895,-572.56,0.00030136,120]
[380344542,1755699431944,-572.56,0.00030136,120]
[380344543,1755699431994,-572.56,0.00030136,120]
[380344544,1755699432043,-572.56,0.00030136,120]
[380344545,1755699432094,-572.56,0.00030136,120]
[380344546,1755699432145,-572.56,0.00030136,120]
[380344547,1755699432197,-572.56,0.00030136,120]
[380344548,1755699432248,-572.56,0.00030136,120]
[380344549,1755699432297,-572.56,0.00030136,120]
[380344550,1755699432346,-572.56,0.00030136,120]
[380344551,1755699432394,-572.56,0.00030136,120]
[380344552,1755699432441,-572.56,0.00030136,120]
[380344553,1755699432492,-572.56,0.00030136,120]
[380344554,1755699432542,-1731.51,0.00030136,120]
[380344555,1755699432596,-572.56,0.00030136,120]
[380344556,1755699432646,-572.56,0.00030136,120]
[380344557,1755699432696,-572.56,0.00030136,120]
[380344558,1755699432749,-572.59267784,0.00030136,120]
[380344559,1755699432800,-400.0,0.00030136,120]
[380344560,1755699432852,-400.0,0.00030136,120]
[380344561,1755699432904,-1319.43,0.00030136,120]
[380344562,1755699432956,-400.0,0.00030136,120]
[380344563,1755699433009,-400.0,0.00030136,120]
[380344564,1755699433061,-400.0,0.00030136,120]
[380344565,1755699433111,-557.55,0.00030136,120]
[380344566,1755699433166,-1503.61,0.00030136,120]
[380344567,1755699433217,-1070.9,0.00030136,120]
[380344568,1755699433268,-400.0,0.00030136,120]
[380344569,1755699433318,-475.88,0.00030136,120]
[380344570,1755699433370,-400.0,0.00030136,120]
[380344571,1755699433422,-2476.1,0.00030136,120]
[380344572,1755699433472,-444.24,0.00030136,120]
[380344573,1755699433522,-400.0,0.00030136,120]
[380344574,1755699433576,-400.0,0.00030136,120]
[380344575,1755699433629,-400.0,0.00030136,120]
[380344576,1755699433678,-400.0,0.00030136,120]
[380344577,1755699433730,-2033.73,0.00030136,120]
[380344578,1755699433782,-450.59,0.00030136,120]
[380344579,1755699433841,-752.66,0.00030136,120]
[380344580,1755699433892,-659.18,0.00030136,120]
[380344581,1755699433942,-1522.42,0.00030136,120]
[380344582,1755699434325,-400.0,0.00030136,120]
[380344583,1755699434377,-400.0,0.00030136,120]
[380344584,1755699434429,-1123.51,0.00030136,120]
[380344585,1755699434484,-1257.91,0.00030136,120]
[380344586,1755699434541,-1282.32,0.00030136,120]
[380344587,1755699434606,-400.0,0.00030136,120]
[380344588,1755699434668,-405.86,0.00030136,120]
[380344589,1755699434722,-796.64,0.00030136,120]
[380344590,1755699434774,-837.07,0.00030136,120]
[380344591,1755699434828,-509.03,0.00030136,120]
[380344592,1755699434882,-400.0,0.00030136,120]
[380344593,1755699434935,-1404.87,0.00030136,120]
[380344594,1755699434987,-1593.07,0.00030136,120]
[380344595,1755699435043,-400.0,0.00030136,120]
[380344596,1755699435097,-400.0,0.00030136,120]
[380344597,1755699435152,-1000.45,0.00030136,120]
[380344598,1755699435204,-1362.23,0.00030136,120]
[380344599,1755699435256,-400.0,0.00030136,120]
[380344600,1755699435310,-879.84,0.00030136,120]
[380344601,1755699435366,-740.39,0.00030136,120]
[380344602,1755699435423,-400.0,0.00030136,120]
[380344603,1755699435479,-848.4,0.00030136,120]
[380344604,1755699435539,-400.0,0.00030136,120]
[380344605,1755699435606,-400.0,0.00030136,120]
[380344606,1755699435673,-938.2,0.00030136,120]
[380344607,1755699435760,-439.18,0.00030136,120]
[380344608,1755699435818,-1011.08,0.00030136,120]
[380344609,1755699435870,-1012.21,0.00030136,120]
[380344610,1755699435923,-400.0,0.00030136,120]
[380344611,1755699435974,-450.64,0.00030136,120]
[380344612,1755699436028,-662.99,0.00030136,120]
[380344613,1755699436085,-400.0,0.00030136,120]
[380344614,1755699436143,-400.0,0.00030136,120]
[380344615,1755699436196,-1610.03,0.00030136,120]
[380344616,1755699436248,-400.0,0.00030136,120]
[380344617,1755699436300,-2610.64,0.00030136,120]
[380344618,1755699436352,-400.0,0.00030136,120]
[380344619,1755699436404,-2829.77,0.00030136,120]
[380344620,1755699436454,-1186.16,0.00030136,120]
[380344621,1755699436504,-1507.34,0.00030136,120]
[380344622,1755699436555,-788.34,0.00030136,120]
[380344623,1755699436607,-1200.18,0.00030136,120]
[380344624,1755699436657,-400.0,0.00030136,120]
[380344625,1755699436707,-1496.56,0.00030136,120]
[380344626,1755699436755,-478.39,0.00030136,120]
[380344627,1755699436807,-4128.21,0.00030136,120]
[380344628,1755699436860,-493.12,0.00030136,120]
[380344629,1755699436912,-400.0,0.00030136,120]
[380344630,1755699436963,-480.37,0.00030136,120]
[380344631,1755699437013,-400.0,0.00030136,120]
[380344632,1755699437065,-400.0,0.00030136,120]
[380344633,1755699437116,-400.0,0.00030136,120]
[380344634,1755699437167,-531.3,0.00030136,120]
[380344635,1755699437219,-545.92,0.00030136,120]
[380344636,1755699437269,-400.0,0.00030136,120]
[380344637,1755699437320,-400.0,0.00030136,120]
[380344638,1755699437370,-1137.16,0.00030136,120]
[380344639,1755699437420,-400.0,0.00030136,120]
[380344640,1755699437470,-1167.63,0.00030136,120]
[380344641,1755699437519,-400.0,0.00030136,120]
[380344642,1755699437569,-953.47,0.00030136,120]
[380344643,1755699437618,-473.99,0.00030136,120]
[380344644,1755699437667,-1697.56,0.00030136,120]
[380344645,1755699437718,-498.2,0.00030136,120]
[380344646,1755699437767,-1777.75,0.00030136,120]
[380344647,1755699437816,-548.11,0.00030136,120]
[380344648,1755699437868,-400.0,0.00030136,120]
[380344649,1755699437923,-1325.4,0.00030136,120]
[380344650,1755699437982,-400.0,0.00030136,120]
[380344651,1755699438039,-1110.02,0.00030136,120]
[380344652,1755699438094,-518.15512648,0.00030136,120]
[380344653,1755699438151,-400.0,0.00030136,120]
[380344654,1755699438205,-400.0,0.00030136,120]
[380344655,1755699438264,-517.12,0.00030136,120]
[380344656,1755699438319,-1286.09,0.00030136,120]
[380344657,1755699438374,-1578.48,0.00030136,120]
[380344658,1755699438428,-400.0,0.00030136,120]
[380344659,1755699438481,-400.0,0.00030136,120]
[380344660,1755699438535,-1620.86,0.00030136,120]
[380344661,1755699438586,-936.42,0.00030136,120]
[380344662,1755699438638,-1086.82,0.00030136,120]
[380344663,1755699438690,-400.0,0.00030136,120]
[380344664,1755699438743,-1486.98,0.00030136,120]
[380344665,1755699438796,-400.0,0.00030136,120]
[380344666,1755699438848,-817.11,0.00030136,120]
[380344667,1755699438903,-594.77,0.00030136,120]
[380344668,1755699438953,-594.77,0.00030136,120]
[380344669,1755699439005,-594.77,0.00030136,120]
[380344670,1755699439057,-594.77,0.00030136,120]
[380344671,1755699439111,-594.77,0.00030136,120]
[380344672,1755699439163,-594.77,0.00030136,120]
[380344673,1755699439214,-400.0,0.00030136,120]
[380344674,1755699439271,-594.77,0.00030136,120]
[380344675,1755699439325,-594.77,0.00030136,120]
[380344676,1755699439382,-594.77,0.00030136,120]
[380344677,1755699439439,-594.77,0.00030136,120]
[380344678,1755699439494,-594.77,0.00030136,120]
[380344679,1755699439549,-594.77,0.00030136,120]
[380344680,1755699439603,-594.77,0.00030136,120]
[380344681,1755699439654,-400.0,0.00030136,120]
[380344682,1755699439705,-594.77,0.00030136,120]
[380344683,1755699439757,-594.77,0.00030136,120]
[380344684,1755699439808,-193.23705963,0.00030136,120]
[380344685,1755699439862,-594.77,0.00030136,120]
[380344686,1755699439913,-1255.84,0.00030136,120]
[380344687,1755699439964,-594.77,0.00030136,120]
[380344688,1755699440016,-1564.8,0.00030136,120]
[380344689,1755699440068,-594.77,0.00030136,120]
[380344690,1755699440121,-594.77,0.00030136,120]
[380344691,1755699440182,-594.77,0.00030136,120]
[380344692,1755699440250,-594.77,0.00030136,120]
[380344693,1755699440315,-594.77,0.00030136,120]
[380344694,1755699440382,-594.77,0.00030136,120]
[380344695,1755699440437,-594.79211405,0.00030136,120]
[380344696,1755699440489,-400.0,0.00030136,120]
[380344697,1755699440537,-781.56,0.00030136,120]
[380344698,1755699440910,-1039.45,0.00030136,120]
[380344699,1755699440975,-400.0,0.00030136,120]
[380344700,1755699441026,-2078.74,0.00030136,120]
[380344701,1755699441082,-400.0,0.00030136,120]
[380344702,1755699441131,-893.36,0.00030136,120]
[380344703,1755699441182,-400.0,0.00030136,120]
[380344704,1755699441234,-400.0,0.00030136,120]
[380344705,1755699441284,-400.0,0.00030136,120]
[380344706,1755699441335,-400.0,0.00030136,120]
[380344707,1755699441387,-620.19,0.00030136,120]
[380344708,1755699441440,-1245.39,0.00030136,120]
[380344709,1755699441490,-620.19,0.00030136,120]
[380344710,1755699441540,-1204.08,0.00030136,60]
[380344711,1755699441592,-620.19,0.00030136,120]
[380344712,1755699441641,-421.99,0.00030136,120]
[380344713,1755699441690,-620.19,0.00030136,120]
[380344714,1755699441745,-620.19,0.00030136,120]
[380344715,1755699441798,-400.0,0.00030136,120]
[380344716,1755699441854,-620.19,0.00030136,120]
[380344717,1755699441908,-620.19,0.00030136,120]
[380344718,1755699441961,-620.19,0.00030136,120]
[380344719,1755699442015,-620.19,0.00030136,120]
[380344720,1755699442069,-620.19,0.00030136,120]
[380344721,1755699442129,-620.19,0.00030136,120]
[380344722,1755699442184,-620.19,0.00030136,120]
[380344723,1755699442240,-620.19,0.00030136,120]
[380344724,1755699442293,-620.19,0.00030136,120]
[380344725,1755699442345,-400.0,0.00030136,120]
[380344726,1755699442399,-620.19,0.00030136,120]
[380344727,1755699442453,-620.19,0.00030136,120]
[380344728,1755699442504,-620.19,0.00030136,120]
[380344729,1755699442554,-620.19,0.00030136,120]
[380344730,1755699442613,-620.19,0.00030136,120]
[380344731,1755699442663,-620.19,0.00030136,120]
[380344732,1755699442711,-620.19,0.00030136,120]
[380344733,1755699442762,-620.19,0.00030136,120]
[380344734,1755699442811,-620.19,0.00030136,120]
[380344735,1755699442860,-620.42028015,0.00030136,120]
[380344736,1755699442911,-1598.65,0.00030136,120]
[380344737,1755699442962,-941.62,0.00030136,120]
[380344738,1755699443013,-602.42,0.00030136,120]
[380344739,1755699443066,-400.0,0.00030136,120]
[380344740,1755699443128,-400.0,0.00030136,120]
[380344741,1755699443181,-856.55,0.00030136,120]
[380344742,1755699443241,-510.19,0.00030136,120]
[380344743,1755699443297,-400.0,0.00030136,120]
[380344744,1755699443353,-429.33,0.00030136,120]
[380344745,1755699443410,-400.0,0.00030136,120]
[380344746,1755699443463,-400.0,0.00030136,120]
[380344747,1755699443513,-400.0,0.00030136,120]
[380344748,1755699443565,-400.0,0.00030136,120]
[380344749,1755699443616,-400.0,0.00030136,120]
[380344750,1755699443667,-1236.13,0.00030136,120]
[380344751,1755699443717,-400.0,0.00030136,120]
[380344752,1755699443768,-1012.24,0.00030136,120]
[380344753,1755699443817,-647.67,0.00030136,120]
[380344754,1755699443869,-1379.16,0.00030136,120]
[380344755,1755699443920,-541.21635207,0.00030136,120]
[380344756,1755699443972,-1233.26,0.00030136,120]
[380344757,1755699444025,-734.09,0.00030136,120]
[380344758,1755699444082,-400.0,0.00030136,120]
[380344759,1755699444142,-1077.11,0.00030136,120]
[380344760,1755699444193,-400.0,0.00030136,120]
[380344761,1755699444244,-400.0,0.00030136,120]
[380344762,1755699444296,-1532.49,0.00030136,120]
[380344763,1755699444356,-400.0,0.00030136,120]
[380344764,1755699444410,-441.86,0.00030136,120]
[380344765,1755699444461,-433.19,0.00030136,120]
[380344766,1755699444511,-1145.11,0.00030136,120]
[380344767,1755699444562,-1060.13,0.00030136,120]
[380344768,1755699444618,-413.34,0.00030136,120]
[380344769,1755699444670,-880.42,0.00030136,120]
[380344770,1755699444721,-400.0,0.00030136,120]
[380344771,1755699444774,-1255.48,0.00030136,120]
[380344772,1755699444829,-2504.96,0.00030136,120]
[380344773,1755699444883,-999.26,0.00030136,120]
[380344774,1755699444935,-1510.54,0.00030136,120]
[380344775,1755699444985,-1280.77,0.00030136,120]
[380344776,1755699445040,-1687.01,0.00030136,120]
[380344777,1755699445094,-1130.7,0.00030136,120]
[380344778,1755699445152,-400.0,0.00030136,120]
[380344779,1755699445208,-796.52,0.00030136,120]
[380344780,1755699445261,-400.0,0.00030136,120]
[380344781,1755699445313,-1343.57,0.00030136,120]
[380344782,1755699445365,-628.89,0.00030136,120]
[380344783,1755699445418,-400.0,0.00030136,120]
[380344784,1755699445469,-400.0,0.00030136,120]
[380344785,1755699445519,-885.15,0.00030136,120]
[380344786,1755699445574,-1421.92,0.00030136,120]
[380344787,1755699445624,-704.81,0.00030136,120]
[380344788,1755699445674,-933.69,0.00030136,120]
[380344789,1755699445721,-509.28,0.00030136,120]
[380344790,1755699445771,-2622.35,0.00030136,120]
[380344791,1755699445818,-400.0,0.00030136,120]
[380344792,1755699445866,-400.0,0.00030136,120]
[380344793,1755699445915,-400.91,0.00030136,120]
[380344794,1755699445963,-400.0,0.00030136,120]
[380344795,1755699446012,-400.0,0.00030136,120]
[380344796,1755699446063,-1113.5,0.00030136,120]
[380344797,1755699446113,-1215.57,0.00030136,120]
[380344798,1755699446167,-400.0,0.00030136,120]
[380344799,1755699446216,-400.0,0.00030136,120]
[380344800,1755699446267,-400.0,0.00030136,120]
[380344801,1755699446318,-400.0,0.00030136,120]
[380344802,1755699446369,-400.0,0.00030136,120]
[380344803,1755699446419,-786.79,0.00030136,120]
[380344804,1755699446469,-1327.0,0.00030136,120]
[380344805,1755699446520,-400.0,0.00030136,120]
[380344806,1755699446574,-956.89,0.00030136,120]
[380344807,1755699446624,-400.0,0.00030136,120]
[380344808,1755699446672,-400.0,0.00030136,120]
[380344809,1755699446721,-535.63,0.00030136,120]
[380344810,1755699446770,-400.0,0.00030136,120]
[380344811,1755699446819,-1053.4,0.00030136,120]
[380344812,1755699446871,-400.0,0.00030136,120]
[380344813,1755699446925,-1448.66,0.00030136,120]
[380344814,1755699447434,-400.0,0.00030136,120]
[380344815,1755699447491,-1063.73,0.00030136,120]
[380344816,1755699447539,-400.0,0.00030136,120]
[380344817,1755699447592,-400.0,0.00030136,120]
[380344818,1755699447644,-400.0,0.00030136,120]
[380344819,1755699447694,-400.0,0.00030136,120]
[380344820,1755699447743,-1439.88,0.00030136,120]
[380344821,1755699447790,-400.0,0.00030136,120]
[380344822,1755699447841,-1143.51,0.00030136,120]
[380344823,1755699447890,-679.12,0.00030136,120]
[380344824,1755699447940,-400.0,0.00030136,120]
[380344825,1755699447992,-400.0,0.00030136,120]
[380344826,1755699448047,-400.0,0.00030136,120]
[380344827,1755699448102,-803.26,0.00030136,120]
[380344828,1755699448154,-400.0,0.00030136,120]
[380344829,1755699448208,-400.0,0.00030136,120]
[380344830,1755699448260,-400.0,0.00030136,120]
[380344831,1755699448311,-400.0,0.00030136,120]
[380344832,1755699448364,-593.92,0.00030136,120]
[380344833,1755699448418,-1270.29,0.00030136,120]
[380344834,1755699448470,-400.0,0.00030136,120]
[380344835,1755699448523,-400.0,0.00030136,120]
[380344836,1755699448576,-400.82,0.00030136,120]
[380344837,1755699448629,-1196.92,0.00030136,120]
[380344838,1755699448684,-400.0,0.00030136,120]
[380344839,1755699448737,-400.0,0.00030136,120]
[380344840,1755699448795,-684.53,0.00030136,120]
[380344841,1755699448854,-400.0,0.00030136,120]
[380344842,1755699448905,-400.0,0.00030136,120]
[380344843,1755699448956,-400.0,0.00030136,120]
[380344844,1755699449010,-531.87,0.00030136,120]
[380344845,1755699449070,-531.87,0.00030136,120]
[380344846,1755699449129,-531.87,0.00030136,120]
[380344847,1755699449183,-531.87,0.00030136,120]
[380344848,1755699449240,-531.87,0.00030136,120]
[380344849,1755699449294,-531.87,0.00030136,120]
[380344850,1755699449352,-531.87,0.00030136,120]
[380344851,1755699449407,-531.87,0.00030136,120]
[380344852,1755699449458,-400.0,0.00030136,120]
[380344853,1755699449510,-531.87,0.00030136,120]
[380344854,1755699449563,-531.87,0.00030136,120]
[380344855,1755699449620,-531.87,0.00030136,120]
[380344856,1755699449673,-531.87,0.00030136,120]
[380344857,1755699449724,-531.87,0.00030136,120]
[380344858,1755699449775,-531.87,0.00030136,120]
[380344859,1755699449826,-531.87,0.00030136,120]
[380344860,1755699449883,-531.87,0.00030136,120]
[380344861,1755699449939,-531.87,0.00030136,120]
[380344862,1755699449991,-531.87,0.00030136,120]
[380344863,1755699450046,-531.87,0.00030136,120]
[380344864,1755699450102,-531.87,0.00030136,120]
[380344865,1755699450152,-531.87,0.00030136,120]
[380344866,1755699450204,-531.87,0.00030136,120]
[380344867,1755699450253,-531.87,0.00030136,120]
[380344868,1755699450305,-531.96274137,0.00030136,120]
[380344869,1755699450354,-475.66,0.00030136,120]
[380344870,1755699450407,-1420.59,0.00030136,120]
[380344871,1755699450460,-1179.75,0.00030136,120]
[380344872,1755699450517,-1496.55,0.00030136,120]
[380344873,1755699450575,-652.74,0.00030136,120]
[380344874,1755699450644,-400.0,0.00030136,120]
[380344875,1755699450713,-400.0,0.00030136,120]
[380344876,1755699450782,-400.0,0.00030136,120]
[380344877,1755699450837,-510.1,0.00030136,120]
[380344878,1755699450891,-400.0,0.00030136,120]
[380344879,1755699450949,-979.82,0.00030136,120]
[380344880,1755699451001,-400.0,0.00030136,120]
[380344881,1755699451057,-400.0,0.00030136,120]
[380344882,1755699451109,-1331.61,0.00030136,120]
[380344883,1755699451163,-400.0,0.00030136,120]
[380344884,1755699451226,-959.51,0.00030136,120]
[380344885,1755699451282,-400.0,0.00030136,120]
[380344886,1755699451337,-555.31,0.00030136,120]
[380344887,1755699451389,-1680.55,0.00030136,120]
[380344888,1755699451440,-400.0,0.00030136,120]
[380344889,1755699451492,-400.0,0.00030136,120]
[380344890,1755699451543,-400.0,0.00030136,120]
[380344891,1755699451595,-2661.87,0.00030136,120]
[380344892,1755699451645,-1653.01,0.00030136,120]
[380344893,1755699451693,-400.0,0.00030136,120]
[380344894,1755699451741,-448.08,0.00030136,120]
[380344895,1755699451789,-400.0,0.00030136,120]
[380344896,1755699451839,-400.1519519,0.00030136,120]
[380344897,1755699451886,-1556.7,0.00030136,120]
[380344898,1755699451933,-400.0,0.00030136,120]
[380344899,1755699451982,-1740.16,0.00030136,120]
[380344900,1755699452030,-1220.88,0.00030136,120]
[380344901,1755699452079,-400.0,0.00030136,120]
[380344902,1755699452127,-400.0,0.00030136,120]
[380344903,1755699452176,-1798.35,0.00030136,120]
[380344904,1755699452226,-400.0,0.00030136,120]
[380344905,1755699452276,-400.0,0.00030136,120]
[380344906,1755699452327,-1173.93,0.00030136,120]
[380344907,1755699452372,-400.0,0.00030136,120]
[380344908,1755699452421,-400.0,0.00030136,120]
[380344909,1755699452468,-566.82,0.00030136,120]
[380344910,1755699452516,-476.87,0.00030136,120]
[380344911,1755699452564,-545.78,0.00030136,120]
[380344912,1755699452613,-400.0,0.00030136,120]
[380344913,1755699452663,-2356.97,0.00030136,120]
[380344914,1755699452709,-400.0,0.00030136,120]
[380344915,1755699452756,-1125.08,0.00030136,120]
[380344916,1755699452803,-400.0,0.00030136,120]
[380344917,1755699452852,-400.0,0.00030136,120]
[380344918,1755699452901,-423.58,0.00030136,120]
[380344919,1755699452950,-1496.83,0.00030136,120]
[380344920,1755699453000,-400.0,0.00030136,120]
[380344921,1755699453057,-400.0,0.00030136,120]
[380344922,1755699453111,-400.0,0.00030136,120]
[380344923,1755699453165,-400.0,0.00030136,120]
[380344924,1755699453218,-1032.76,0.00030136,120]
[380344925,1755699453275,-1772.07,0.00030136,120]
[380344926,1755699453329,-400.0,0.00030136,120]
[380344927,1755699453385,-400.0,0.00030136,120]
[380344928,1755699453441,-542.87,0.00030136,120]
[380344929,1755699453496,-921.14,0.00030136,120]
[380344930,1755699453882,-573.52,0.00030136,120]
[380344931,1755699453933,-400.0,0.00030136,120]
[380344932,1755699453983,-659.47,0.00030136,120]
[380344933,1755699454035,-400.0,0.00030136,120]
[380344934,1755699454088,-400.0,0.00030136,120]
[380344935,1755699454142,-400.0,0.00030136,120]
[380344936,1755699454194,-1775.6,0.00030136,120]
[380344937,1755699454245,-400.0,0.00030136,120]
[380344938,1755699454297,-1625.68,0.00030136,120]
[380344939,1755699454351,-400.0,0.00030136,120]
[380344940,1755699454411,-400.0,0.00030136,120]
[380344941,1755699454463,-1140.28,0.00030136,120]
[380344942,1755699454517,-764.54,0.00030136,120]
[380344943,1755699454574,-1450.77,0.00030136,120]
[380344944,1755699454626,-545.79,0.00030136,120]
[380344945,1755699454681,-545.79,0.00030136,120]
[380344946,1755699454737,-545.79,0.00030136,120]
[380344947,1755699454794,-545.79,0.00030136,120]
[380344948,1755699454852,-400.0,0.00030136,120]
[380344949,1755699454909,-545.79,0.00030136,120]
[380344950,1755699454965,-545.79,0.00030136,120]
[380344951,1755699455029,-545.79,0.00030136,120]
[380344952,1755699455098,-545.79,0.00030136,120]
[380344953,1755699455170,-545.79,0.00030136,120]
[380344954,1755699455226,-545.79,0.00030136,120]
[380344955,1755699455284,-545.79,0.00030136,120]
[380344956,1755699455343,-545.79,0.00030136,120]
[380344957,1755699455403,-545.79,0.00030136,120]
[380344958,1755699455464,-545.79,0.00030136,120]
[380344959,1755699455524,-545.79,0.00030136,120]
[380344960,1755699455582,-545.79,0.00030136,120]
[380344961,1755699455649,-545.79,0.00030136,120]
[380344962,1755699455704,-545.79,0.00030136,120]
[380344963,1755699455756,-545.79,0.00030136,120]
[380344964,1755699455814,-545.79,0.00030136,120]
[380344965,1755699455866,-545.79,0.00030136,120]
[380344966,1755699455921,-545.79,0.00030136,120]
[380344967,1755699455974,-545.79,0.00030136,120]
[380344968,1755699456028,-546.0,0.00030136,120]
[380344969,1755699456081,-1307.47,0.00030136,120]
[380344970,1755699456133,-455.37,0.00030136,120]
[380344971,1755699456191,-400.0,0.00030136,120]
[380344972,1755699456247,-400.0,0.00030136,120]
[380344973,1755699456302,-411.1,0.00030136,120]
[380344974,1755699456358,-416.11064378,0.00030136,120]
[380344975,1755699456412,-1692.63,0.00030136,120]
[380344976,1755699456464,-400.0,0.00030136,120]
[380344977,1755699456517,-400.0,0.00030136,120]
[380344978,1755699456573,-1543.57,0.00030136,120]
[380344979,1755699456626,-400.43,0.00030136,120]
[380344980,1755699456677,-400.0,0.00030136,120]
[380344981,1755699456730,-2130.33,0.00030136,120]
[380344982,1755699456784,-400.0,0.00030136,120]
[380344983,1755699456835,-315.61274593,0.00030136,120]
[380344984,1755699456888,-1256.72,0.00030136,120]
[380344985,1755699456942,-400.0,0.00030136,120]
[380344986,1755699456994,-400.0,0.00030136,120]
[380344987,1755699457044,-976.21,0.00030136,120]
[380344988,1755699457097,-400.0,0.00030136,120]